[Event "*** SCC Grand Prix: Titled Tuesday Blitz"]
[Site "Chess.com"]
[Date "2020.08.04"]
[Round "5"]
[White "Ural_bogatyr"]
[Black "SilviusTiberius"]
[Result "0-1"]
[WhiteElo "2364"]
[BlackElo "2509"]
[TimeControl "180+1"]
[EndTime "14:42:29 PDT"]
[Termination "SilviusTiberius won on time"]

1. d4 {[%clk 0:03:00.9]} 1... Nf6 {[%clk 0:02:59.2]} 2. Bf4 {[%clk 0:03:01.2]}
2... g6 {[%clk 0:02:58.9]} 3. e3 {[%clk 0:03:01.5]} 3... Bg7 {[%clk 0:02:59.2]}
4. Nf3 {[%clk 0:03:01.9]} 4... d6 {[%clk 0:02:59.3]} 5. h3 {[%clk 0:03:02.2]}
5... O-O {[%clk 0:02:53.2]} 6. Be2 {[%clk 0:03:02.3]} 6... Nc6 {[%clk
0:02:53.3]} 7. O-O {[%clk 0:03:02.7]} 7... e5 {[%clk 0:02:53.1]} 8. dxe5 {[%clk
0:03:00.9]} 8... Ne4 {[%clk 0:02:51.3]} 9. exd6 {[%clk 0:02:15.9]} 9... Bxb2
{[%clk 0:02:47.1]} 10. Nbd2 {[%clk 0:02:09.8]} 10... Nc3 {[%clk 0:02:43.5]} 11.
Qe1 {[%clk 0:02:09.9]} 11... Bxa1 {[%clk 0:02:37.6]} 12. dxc7 {[%clk 0:01:51.3]}
12... Qe7 {[%clk 0:02:22.8]} 13. Bc4 {[%clk 0:01:41]} 13... Be6 {[%clk
0:02:04.6]} 14. Bxe6 {[%clk 0:01:36.7]} 14... fxe6 {[%clk 0:02:04.2]} 15. Qxa1
{[%clk 0:01:34.2]} 15... Ne2+ {[%clk 0:02:04]} 16. Kh1 {[%clk 0:01:32.2]} 16...
Nxf4 {[%clk 0:02:03.5]} 17. exf4 {[%clk 0:01:33.1]} 17... Rxf4 {[%clk
0:01:56.5]} 18. Re1 {[%clk 0:01:29.3]} 18... Qxc7 {[%clk 0:01:42.6]} 19. Rxe6
{[%clk 0:01:27]} 19... Raf8 {[%clk 0:01:43]} 20. Qc3 {[%clk 0:01:17]} 20... Qg7
{[%clk 0:01:33.6]} 21. Qb3 {[%clk 0:01:03.1]} 21... Kh8 {[%clk 0:01:22.6]} 22.
Qe3 {[%clk 0:00:56.3]} 22... Qa1+ {[%clk 0:01:12.1]} 23. Kh2 {[%clk 0:00:56.1]}
23... Qxa2 {[%clk 0:01:11.5]} 24. Qc3+ {[%clk 0:00:24.1]} 24... Kg8 {[%clk
0:01:10.7]} 25. Nb3 {[%clk 0:00:17.6]} 25... Qa3 {[%clk 0:00:51.1]} 26. Qd3
{[%clk 0:00:13.3]} 26... Qb4 {[%clk 0:00:40.2]} 27. Rxg6+ {[%clk 0:00:12.2]}
27... Kh8 {[%clk 0:00:37.9]} 28. Rg3 {[%clk 0:00:11.9]} 28... Qe7 {[%clk
0:00:22]} 29. Qc3+ {[%clk 0:00:10.9]} 29... Qf6 {[%clk 0:00:22]} 30. Qd3 {[%clk
0:00:10.6]} 30... b6 {[%clk 0:00:19.2]} 31. Nbd2 {[%clk 0:00:10.4]} 31... Ne5
{[%clk 0:00:17.8]} 32. Nxe5 {[%clk 0:00:09.7]} 32... Qxe5 {[%clk 0:00:18.7]} 33.
Nf3 {[%clk 0:00:10.2]} 33... Qc7 {[%clk 0:00:16.9]} 34. Qe3 {[%clk 0:00:10]}
34... R4f6 {[%clk 0:00:14.3]} 35. h4 {[%clk 0:00:08.4]} 35... Rg6 {[%clk
0:00:14.3]} 36. Kh3 {[%clk 0:00:08.6]} 36... Rxg3+ {[%clk 0:00:14.3]} 37. fxg3
{[%clk 0:00:09.5]} 37... Qd7+ {[%clk 0:00:14]} 38. Kh2 {[%clk 0:00:09.5]} 38...
Qg7 {[%clk 0:00:14.9]} 39. Ng5 {[%clk 0:00:08.6]} 39... Qg6 {[%clk 0:00:13.6]}
40. Qe5+ {[%clk 0:00:06.8]} 40... Kg8 {[%clk 0:00:13.9]} 41. Qd5+ {[%clk
0:00:06.1]} 41... Kg7 {[%clk 0:00:13.9]} 42. Qe5+ {[%clk 0:00:06.4]} 42... Qf6
{[%clk 0:00:14.2]} 43. Ne6+ {[%clk 0:00:06.4]} 43... Kg8 {[%clk 0:00:11.9]} 44.
Qd5 {[%clk 0:00:06.2]} 44... Re8 {[%clk 0:00:10.9]} 45. Ng5+ {[%clk 0:00:05.5]}
45... Kg7 {[%clk 0:00:10.9]} 46. Qd7+ {[%clk 0:00:05.4]} 46... Re7 {[%clk
0:00:11.2]} 47. Qg4 {[%clk 0:00:05.8]} 47... h5 {[%clk 0:00:10.6]} 48. Qxh5
{[%clk 0:00:05.5]} 48... Qg6 {[%clk 0:00:11]} 49. Qg4 {[%clk 0:00:05.1]} 49...
b5 {[%clk 0:00:10.5]} 50. Qd4+ {[%clk 0:00:05.2]} 50... Kf8 {[%clk 0:00:10.2]}
51. Qd8+ {[%clk 0:00:04.9]} 51... Re8 {[%clk 0:00:10.6]} 52. Qd4 {[%clk
0:00:04]} 52... Qg7 {[%clk 0:00:10.4]} 53. Qf4+ {[%clk 0:00:04.3]} 53... Kg8
{[%clk 0:00:10.5]} 54. Qg4 {[%clk 0:00:04.2]} 54... b4 {[%clk 0:00:09.4]} 55.
Qh5 {[%clk 0:00:04.5]} 55... Rf8 {[%clk 0:00:09.5]} 56. Qg4 {[%clk 0:00:04.5]}
56... Qg6 {[%clk 0:00:09.2]} 57. Qxb4 {[%clk 0:00:04.6]} 57... Rf5 {[%clk
0:00:08.7]} 58. Qb3+ {[%clk 0:00:05]} 58... Kg7 {[%clk 0:00:08.8]} 59. Qb7+
{[%clk 0:00:05]} 59... Kh6 {[%clk 0:00:08.8]} 60. Qc8 {[%clk 0:00:05.4]} 60...
Rxg5 {[%clk 0:00:08.8]} 61. hxg5+ {[%clk 0:00:05.3]} 61... Kxg5 {[%clk
0:00:09.7]} 62. Qh3 {[%clk 0:00:05.6]} 62... Qxc2 {[%clk 0:00:09.4]} 63. Qh4+
{[%clk 0:00:05.9]} 63... Kg6 {[%clk 0:00:10]} 64. Qf4 {[%clk 0:00:06.6]} 64...
Qa2 {[%clk 0:00:08.3]} 65. Qd6+ {[%clk 0:00:06.5]} 65... Kg7 {[%clk 0:00:08.4]}
66. Qe7+ {[%clk 0:00:06.3]} 66... Kg6 {[%clk 0:00:08.3]} 67. Qd6+ {[%clk
0:00:06]} 67... Kf5 {[%clk 0:00:08.3]} 68. Qf4+ {[%clk 0:00:06.2]} 68... Kg6
{[%clk 0:00:08.7]} 69. g4 {[%clk 0:00:06.4]} 69... Qf7 {[%clk 0:00:07.4]} 70.
Qd6+ {[%clk 0:00:05.7]} 70... Kg5 {[%clk 0:00:07.3]} 71. Qg3 {[%clk 0:00:05.1]}
71... Qh7+ {[%clk 0:00:07.1]} 72. Kg1 {[%clk 0:00:05.4]} 72... Qb1+ {[%clk
0:00:06.9]} 73. Kh2 {[%clk 0:00:04.9]} 73... Qh7+ {[%clk 0:00:07.4]} 74. Kg1
{[%clk 0:00:05.3]} 74... Qe7 {[%clk 0:00:07.7]} 75. Qf3 {[%clk 0:00:03.8]} 75...
Qe1+ {[%clk 0:00:07.3]} 76. Kh2 {[%clk 0:00:03.7]} 76... Qh4+ {[%clk 0:00:07.5]}
77. Kg1 {[%clk 0:00:04.1]} 77... Qe1+ {[%clk 0:00:06.4]} 78. Kh2 {[%clk
0:00:03.5]} 78... Qe5+ {[%clk 0:00:06.8]} 79. Kg1 {[%clk 0:00:02.9]} 79... a5
{[%clk 0:00:07.3]} 0-1

[Event "*** SCC Grand Prix: Titled Tuesday Blitz"]
[Site "Chess.com"]
[Date "2020.08.04"]
[Round "5"]
[White "Andreikka"]
[Black "ArjunErigaisi2003"]
[Result "1-0"]
[WhiteElo "2859"]
[BlackElo "3039"]
[TimeControl "180+1"]
[EndTime "14:42:37 PDT"]
[Termination "Andreikka won by resignation"]

1. c4 {[%clk 0:03:00.9]} 1... e6 {[%clk 0:02:58.7]} 2. Nc3 {[%clk 0:03:00.4]}
2... d5 {[%clk 0:02:57.5]} 3. d4 {[%clk 0:03:00.6]} 3... a6 {[%clk 0:02:57.4]}
4. cxd5 {[%clk 0:02:57.9]} 4... exd5 {[%clk 0:02:58.3]} 5. Qb3 {[%clk
0:02:58.5]} 5... Nf6 {[%clk 0:02:55.9]} 6. Bg5 {[%clk 0:02:57.5]} 6... c6 {[%clk
0:02:54.8]} 7. e3 {[%clk 0:02:56.3]} 7... Be7 {[%clk 0:02:53.6]} 8. Bd3 {[%clk
0:02:56.4]} 8... O-O {[%clk 0:02:52.4]} 9. Nf3 {[%clk 0:02:56.9]} 9... b5 {[%clk
0:02:48]} 10. Qc2 {[%clk 0:02:54.6]} 10... h6 {[%clk 0:02:46.3]} 11. Bh4 {[%clk
0:02:49.3]} 11... Be6 {[%clk 0:02:46]} 12. Ne2 {[%clk 0:01:55.2]} 12... Nbd7
{[%clk 0:02:33.3]} 13. O-O {[%clk 0:01:46.4]} 13... Rc8 {[%clk 0:02:23]} 14. Nf4
{[%clk 0:01:39.6]} 14... c5 {[%clk 0:02:18.4]} 15. Nxe6 {[%clk 0:01:30]} 15...
fxe6 {[%clk 0:02:18.2]} 16. dxc5 {[%clk 0:01:14.8]} 16... Nxc5 {[%clk
0:02:19.1]} 17. Bg6 {[%clk 0:01:11.8]} 17... Nfe4 {[%clk 0:01:54.3]} 18. Bxe7
{[%clk 0:01:11.7]} 18... Qxe7 {[%clk 0:01:55.2]} 19. Rac1 {[%clk 0:01:11.7]}
19... Nd6 {[%clk 0:01:36.3]} 20. Qe2 {[%clk 0:00:58.6]} 20... Qf6 {[%clk
0:01:27.2]} 21. Bb1 {[%clk 0:00:54.5]} 21... Nce4 {[%clk 0:01:26]} 22. Bd3
{[%clk 0:00:46.3]} 22... g5 {[%clk 0:01:20.1]} 23. Rxc8 {[%clk 0:00:41.4]} 23...
Rxc8 {[%clk 0:01:19.1]} 24. Nd4 {[%clk 0:00:41.7]} 24... Nc5 {[%clk 0:01:10.3]}
25. Bb1 {[%clk 0:00:41.3]} 25... e5 {[%clk 0:01:09.9]} 26. Nc2 {[%clk 0:00:38]}
26... d4 {[%clk 0:00:48.9]} 27. exd4 {[%clk 0:00:33.2]} 27... exd4 {[%clk
0:00:49.8]} 28. Nb4 {[%clk 0:00:33.4]} 28... Kg7 {[%clk 0:00:37.7]} 29. Nd5
{[%clk 0:00:28.9]} 29... Qe6 {[%clk 0:00:36.9]} 30. Qxe6 {[%clk 0:00:12.6]}
30... Nxe6 {[%clk 0:00:37.8]} 31. Re1 {[%clk 0:00:12.8]} 31... a5 {[%clk
0:00:23.2]} 32. g3 {[%clk 0:00:11.2]} 32... Re8 {[%clk 0:00:15.9]} 33. Bd3
{[%clk 0:00:07.7]} 33... b4 {[%clk 0:00:13.4]} 34. Rc1 {[%clk 0:00:05.7]} 34...
Rc8 {[%clk 0:00:13]} 35. Rxc8 {[%clk 0:00:02.8]} 35... Nxc8 {[%clk 0:00:13.9]}
36. Kf1 {[%clk 0:00:03.4]} 36... Nc5 {[%clk 0:00:11.8]} 37. Ke2 {[%clk
0:00:03.9]} 37... Nd6 {[%clk 0:00:11.9]} 38. Nc7 {[%clk 0:00:02.2]} 38... Kf6
{[%clk 0:00:10.7]} 39. Bc2 {[%clk 0:00:01.3]} 39... a4 {[%clk 0:00:09.5]} 40. b3
{[%clk 0:00:01.7]} 40... a3 {[%clk 0:00:09.3]} 41. Nd5+ {[%clk 0:00:02]} 41...
Ke5 {[%clk 0:00:08.8]} 42. Nxb4 {[%clk 0:00:02.9]} 42... Nde4 {[%clk 0:00:07.8]}
43. Nc6+ {[%clk 0:00:02]} 43... Kd5 {[%clk 0:00:07.6]} 44. Nb4+ {[%clk
0:00:02.9]} 44... Ke5 {[%clk 0:00:06.8]} 45. f3 {[%clk 0:00:03.7]} 45... Nc3+
{[%clk 0:00:07.2]} 46. Kd2 {[%clk 0:00:04.4]} 46... h5 {[%clk 0:00:06.9]} 47.
Bd3 {[%clk 0:00:04.7]} 47... h4 {[%clk 0:00:06.7]} 48. Bc4 {[%clk 0:00:05.1]}
48... hxg3 {[%clk 0:00:06.7]} 49. hxg3 {[%clk 0:00:06]} 49... g4 {[%clk
0:00:07]} 50. fxg4 {[%clk 0:00:05.6]} 50... N3e4+ {[%clk 0:00:07.6]} 51. Kc2
{[%clk 0:00:05]} 51... Nxg3 {[%clk 0:00:07.3]} 52. g5 {[%clk 0:00:05.4]} 52...
Kf5 {[%clk 0:00:06.5]} 53. Nc6 {[%clk 0:00:05.6]} 53... Ke4 {[%clk 0:00:03.9]}
54. g6 {[%clk 0:00:05.2]} 54... Nf5 {[%clk 0:00:04.5]} 55. Nb4 {[%clk
0:00:03.2]} 55... Ng7 {[%clk 0:00:02.6]} 56. Nd3 {[%clk 0:00:02.9]} 56... Nd7
{[%clk 0:00:02.9]} 57. b4 {[%clk 0:00:02.9]} 57... Kf5 {[%clk 0:00:02.8]} 58.
Bf7 {[%clk 0:00:02.1]} 58... Ke4 {[%clk 0:00:02.5]} 59. b5 {[%clk 0:00:02.2]}
59... Nb6 {[%clk 0:00:02.6]} 60. Nc5+ {[%clk 0:00:02.4]} 60... Ke3 {[%clk
0:00:03]} 61. Kb3 {[%clk 0:00:02.9]} 61... d3 {[%clk 0:00:03.4]} 62. Kxa3 {[%clk
0:00:02.7]} 62... d2 {[%clk 0:00:03.9]} 63. Bb3 {[%clk 0:00:03.2]} 63... Kd4
{[%clk 0:00:03.3]} 64. Na4 {[%clk 0:00:02.2]} 64... Nc4+ {[%clk 0:00:03.2]} 65.
Kb4 {[%clk 0:00:02.3]} 65... Ne5 {[%clk 0:00:03.5]} 66. Nb2 {[%clk 0:00:02.6]}
66... Nxg6 {[%clk 0:00:03.5]} 67. a4 {[%clk 0:00:02.6]} 67... Ne5 {[%clk
0:00:03.6]} 68. a5 {[%clk 0:00:03]} 68... Nf5 {[%clk 0:00:03.7]} 69. a6 {[%clk
0:00:03.4]} 69... Nd7 {[%clk 0:00:04.3]} 70. a7 {[%clk 0:00:03]} 70... Nb6
{[%clk 0:00:04.8]} 71. Ka5 {[%clk 0:00:03.6]} 71... Na8 {[%clk 0:00:04.4]} 72.
b6 {[%clk 0:00:04]} 72... Ne7 {[%clk 0:00:04.7]} 73. b7 {[%clk 0:00:03.1]} 73...
Nc6+ {[%clk 0:00:04.4]} 74. Ka6 {[%clk 0:00:03]} 74... Nc7+ {[%clk 0:00:04.4]}
75. Kb6 {[%clk 0:00:03.5]} 75... Nxa7 {[%clk 0:00:04.8]} 76. Kxc7 {[%clk
0:00:03.1]} 76... Kc3 {[%clk 0:00:05.2]} 77. Nd1+ {[%clk 0:00:02.8]} 77... Kxb3
{[%clk 0:00:05.3]} 78. b8=Q+ {[%clk 0:00:03.3]} 78... Kc2 {[%clk 0:00:06.2]} 79.
Ne3+ {[%clk 0:00:03.7]} 79... Kd3 {[%clk 0:00:06.6]} 80. Qb3+ {[%clk 0:00:04.2]}
80... Ke2 {[%clk 0:00:06.9]} 81. Kd6 {[%clk 0:00:03]} 81... Nb5+ {[%clk
0:00:06.9]} 82. Qxb5+ {[%clk 0:00:02.9]} 82... Kxe3 {[%clk 0:00:07.6]} 83. Qf1
{[%clk 0:00:03.4]} 1-0

[Event "*** SCC Grand Prix: Titled Tuesday Blitz"]
[Site "Chess.com"]
[Date "2020.08.04"]
[Round "5"]
[White "Shushik"]
[Black "elcandado"]
[Result "0-1"]
[WhiteElo "2284"]
[BlackElo "2582"]
[TimeControl "180+1"]
[EndTime "14:42:51 PDT"]
[Termination "elcandado won on time"]

1. e4 {[%clk 0:03:00.9]} 1... e5 {[%clk 0:02:59]} 2. Nf3 {[%clk 0:03:01.1]} 2...
Nc6 {[%clk 0:02:58.8]} 3. Bc4 {[%clk 0:03:01]} 3... Bc5 {[%clk 0:02:58.1]} 4. c3
{[%clk 0:03:00.9]} 4... Nf6 {[%clk 0:02:57.5]} 5. d4 {[%clk 0:03:01.1]} 5...
exd4 {[%clk 0:02:56.9]} 6. e5 {[%clk 0:03:01.4]} 6... d5 {[%clk 0:02:55]} 7. Bb5
{[%clk 0:03:01.5]} 7... Ne4 {[%clk 0:02:52.9]} 8. cxd4 {[%clk 0:03:01.4]} 8...
Bb6 {[%clk 0:02:49.4]} 9. Nc3 {[%clk 0:03:01.2]} 9... O-O {[%clk 0:02:47.1]} 10.
Be3 {[%clk 0:03:01.4]} 10... Bg4 {[%clk 0:02:42.7]} 11. h3 {[%clk 0:03:01.1]}
11... Bh5 {[%clk 0:02:42.1]} 12. Qa4 {[%clk 0:03:00.9]} 12... Ne7 {[%clk
0:02:34.1]} 13. Bd3 {[%clk 0:02:59.6]} 13... f5 {[%clk 0:02:22.4]} 14. exf6
{[%clk 0:02:52.1]} 14... Nxf6 {[%clk 0:02:21]} 15. Ne5 {[%clk 0:02:50.5]} 15...
c6 {[%clk 0:02:04.7]} 16. O-O {[%clk 0:02:44.4]} 16... Bc7 {[%clk 0:02:01.2]}
17. Qc2 {[%clk 0:02:43.3]} 17... c5 {[%clk 0:01:46.9]} 18. Be2 {[%clk
0:02:12.6]} 18... Bxe2 {[%clk 0:01:35.3]} 19. Qxe2 {[%clk 0:02:11.8]} 19... Nf5
{[%clk 0:01:32.3]} 20. Nf3 {[%clk 0:02:05]} 20... c4 {[%clk 0:01:24.8]} 21. Bg5
{[%clk 0:01:59.6]} 21... Qd7 {[%clk 0:01:03]} 22. Rfe1 {[%clk 0:01:46.4]} 22...
Rae8 {[%clk 0:00:59.7]} 23. Qc2 {[%clk 0:01:29.7]} 23... a6 {[%clk 0:00:33.3]}
24. a4 {[%clk 0:01:28.2]} 24... Rxe1+ {[%clk 0:00:22.5]} 25. Rxe1 {[%clk
0:01:27]} 25... h6 {[%clk 0:00:22.8]} 26. Bxf6 {[%clk 0:01:24.5]} 26... Rxf6
{[%clk 0:00:22.1]} 27. Ne5 {[%clk 0:01:15.6]} 27... Qd6 {[%clk 0:00:20.6]} 28.
Qd2 {[%clk 0:01:12.9]} 28... Re6 {[%clk 0:00:19.4]} 29. Nf3 {[%clk 0:01:01.7]}
29... Rxe1+ {[%clk 0:00:18.1]} 30. Qxe1 {[%clk 0:01:01.6]} 30... Bb6 {[%clk
0:00:17.4]} 31. Qd2 {[%clk 0:00:57.4]} 31... Qe6 {[%clk 0:00:15.7]} 32. Kf1
{[%clk 0:00:49.2]} 32... Ba5 {[%clk 0:00:15.3]} 33. Qe2 {[%clk 0:00:45.5]} 33...
Qxe2+ {[%clk 0:00:13.5]} 34. Kxe2 {[%clk 0:00:45]} 34... Bxc3 {[%clk 0:00:12.4]}
35. bxc3 {[%clk 0:00:44.9]} 35... Kf7 {[%clk 0:00:12.7]} 36. Ne5+ {[%clk
0:00:43]} 36... Ke6 {[%clk 0:00:12.4]} 37. Ng6 {[%clk 0:00:37.4]} 37... Ne7
{[%clk 0:00:09.6]} 38. Nf4+ {[%clk 0:00:35.7]} 38... Kd6 {[%clk 0:00:09.4]} 39.
Nh5 {[%clk 0:00:31.6]} 39... g6 {[%clk 0:00:07.7]} 40. Nf6 {[%clk 0:00:29.9]}
40... b5 {[%clk 0:00:06.4]} 41. axb5 {[%clk 0:00:29.1]} 41... axb5 {[%clk
0:00:07.3]} 42. Kd2 {[%clk 0:00:27.2]} 42... h5 {[%clk 0:00:06.8]} 43. Nh7
{[%clk 0:00:26.6]} 43... Nc6 {[%clk 0:00:05.7]} 44. Ng5 {[%clk 0:00:25]} 44...
b4 {[%clk 0:00:05.3]} 45. cxb4 {[%clk 0:00:21.3]} 45... Nxd4 {[%clk 0:00:05.2]}
46. Nf7+ {[%clk 0:00:20]} 46... Ke6 {[%clk 0:00:03.5]} 47. Ng5+ {[%clk
0:00:19.8]} 47... Ke7 {[%clk 0:00:03.5]} 48. Kc3 {[%clk 0:00:19.4]} 48... Nb5+
{[%clk 0:00:03.3]} 49. Kd2 {[%clk 0:00:19.1]} 49... d4 {[%clk 0:00:03.7]} 50.
Nf3 {[%clk 0:00:19.2]} 50... Kd6 {[%clk 0:00:03]} 51. g4 {[%clk 0:00:17.8]}
51... hxg4 {[%clk 0:00:02.6]} 52. hxg4 {[%clk 0:00:18.1]} 52... Kd5 {[%clk
0:00:03.5]} 53. Nh4 {[%clk 0:00:17.6]} 53... c3+ {[%clk 0:00:03.4]} 54. Kd3
{[%clk 0:00:17.9]} 54... Na3 {[%clk 0:00:03.6]} 55. Nxg6 {[%clk 0:00:17.7]}
55... c2 {[%clk 0:00:03.8]} 56. Kd2 {[%clk 0:00:18.1]} 56... Kc4 {[%clk
0:00:04.1]} 57. Ne5+ {[%clk 0:00:17.3]} 57... Kb3 {[%clk 0:00:04.2]} 58. Nd3
{[%clk 0:00:14.7]} 58... Nc4+ {[%clk 0:00:04.2]} 59. Kc1 {[%clk 0:00:14.6]}
59... Kc3 {[%clk 0:00:04.6]} 60. Ne1 {[%clk 0:00:14.1]} 60... d3 {[%clk
0:00:04.6]} 61. Nxd3 {[%clk 0:00:12.2]} 61... Kxd3 {[%clk 0:00:04.5]} 62. g5
{[%clk 0:00:12.3]} 62... Nd2 {[%clk 0:00:04.8]} 63. g6 {[%clk 0:00:10.3]} 63...
Nb3+ {[%clk 0:00:05.2]} 64. Kb2 {[%clk 0:00:10.6]} 64... c1=Q+ {[%clk
0:00:05.1]} 65. Kxb3 {[%clk 0:00:10.9]} 65... Qc3+ {[%clk 0:00:04.9]} 66. Ka4
{[%clk 0:00:11]} 66... Qg7 {[%clk 0:00:05.1]} 67. b5 {[%clk 0:00:10.2]} 67...
Kc4 {[%clk 0:00:04.9]} 68. b6 {[%clk 0:00:09.1]} 68... Kc5 {[%clk 0:00:04.5]}
69. Ka5 {[%clk 0:00:08.3]} 69... Kc6 {[%clk 0:00:04.4]} 70. Ka6 {[%clk
0:00:07.3]} 70... Qb7+ {[%clk 0:00:03.8]} 71. Ka5 {[%clk 0:00:06.7]} 71... Qxb6+
{[%clk 0:00:04.7]} 72. Ka4 {[%clk 0:00:07.4]} 72... Qb7 {[%clk 0:00:05.1]} 73.
Ka3 {[%clk 0:00:03.8]} 73... Qg7 {[%clk 0:00:06]} 74. Ka2 {[%clk 0:00:03.1]}
74... Qxg6 {[%clk 0:00:05.8]} 75. Kb2 {[%clk 0:00:03.3]} 75... Qd3 {[%clk
0:00:05.4]} 0-1

[Event "*** SCC Grand Prix: Titled Tuesday Blitz"]
[Site "Chess.com"]
[Date "2020.08.04"]
[Round "5"]
[White "BernardoRoselli"]
[Black "Shield12"]
[Result "1/2-1/2"]
[WhiteElo "2473"]
[BlackElo "2831"]
[TimeControl "180+1"]
[EndTime "14:43:04 PDT"]
[Termination "Game drawn by repetition"]

1. d4 {[%clk 0:03:00.9]} 1... Nf6 {[%clk 0:03:00]} 2. c4 {[%clk 0:02:59.1]} 2...
e6 {[%clk 0:03:00.5]} 3. Nf3 {[%clk 0:02:55.8]} 3... b6 {[%clk 0:03:00.3]} 4. a3
{[%clk 0:02:55.3]} 4... Bb7 {[%clk 0:03:00.2]} 5. Nc3 {[%clk 0:02:55.4]} 5...
Ne4 {[%clk 0:03:00.8]} 6. Bd2 {[%clk 0:02:54]} 6... g6 {[%clk 0:02:53.9]} 7. e3
{[%clk 0:02:53.7]} 7... Bg7 {[%clk 0:02:53.7]} 8. Nxe4 {[%clk 0:02:50]} 8...
Bxe4 {[%clk 0:02:53.3]} 9. Bc3 {[%clk 0:02:50.3]} 9... d6 {[%clk 0:02:50.1]} 10.
Be2 {[%clk 0:02:50.2]} 10... Nd7 {[%clk 0:02:49.9]} 11. O-O {[%clk 0:02:50.3]}
11... O-O {[%clk 0:02:50.5]} 12. b4 {[%clk 0:02:48.6]} 12... Qe7 {[%clk
0:02:50]} 13. Qd2 {[%clk 0:02:48.2]} 13... f5 {[%clk 0:02:49.6]} 14. Qb2 {[%clk
0:02:47.5]} 14... Nf6 {[%clk 0:02:48.4]} 15. Rac1 {[%clk 0:02:40.5]} 15... Bb7
{[%clk 0:02:46.4]} 16. Nd2 {[%clk 0:02:35.1]} 16... Rae8 {[%clk 0:02:44.6]} 17.
a4 {[%clk 0:02:20]} 17... g5 {[%clk 0:02:43.1]} 18. a5 {[%clk 0:02:18.3]} 18...
g4 {[%clk 0:02:42.2]} 19. axb6 {[%clk 0:02:17.7]} 19... axb6 {[%clk 0:02:41.2]}
20. Ra1 {[%clk 0:02:16.7]} 20... Ra8 {[%clk 0:02:37.3]} 21. Rxa8 {[%clk
0:02:15.1]} 21... Rxa8 {[%clk 0:02:38.2]} 22. Ra1 {[%clk 0:02:14.4]} 22... Qe8
{[%clk 0:02:38.6]} 23. d5 {[%clk 0:02:07]} 23... e5 {[%clk 0:02:33.5]} 24. Bd3
{[%clk 0:01:58.5]} 24... Rxa1+ {[%clk 0:02:10.5]} 25. Qxa1 {[%clk 0:01:57.5]}
25... Qc8 {[%clk 0:02:11.4]} 26. Qa7 {[%clk 0:01:54.8]} 26... e4 {[%clk
0:02:07.6]} 27. Bf1 {[%clk 0:01:34.9]} 27... Nd7 {[%clk 0:02:05]} 28. Bxg7
{[%clk 0:01:33.3]} 28... Kxg7 {[%clk 0:02:05.9]} 29. Nb3 {[%clk 0:01:28.6]}
29... Ne5 {[%clk 0:01:26.5]} 30. Nd4 {[%clk 0:01:25.7]} 30... Kf6 {[%clk
0:01:26.6]} 31. Ne6 {[%clk 0:01:12]} 31... Ke7 {[%clk 0:01:10.8]} 32. b5 {[%clk
0:01:10.9]} 32... Kd7 {[%clk 0:01:07.7]} 33. Nd4 {[%clk 0:01:07.6]} 33... Ke7
{[%clk 0:01:02]} 34. Nxf5+ {[%clk 0:01:06.8]} 34... Qxf5 {[%clk 0:01:02.9]} 35.
Qxb7 {[%clk 0:01:06.8]} 35... Kd7 {[%clk 0:00:56]} 36. Qa8 {[%clk 0:01:04]}
36... Nd3 {[%clk 0:00:51.7]} 37. Qa2 {[%clk 0:01:03.2]} 37... Qe5 {[%clk
0:00:46]} 38. Qd2 {[%clk 0:00:58.3]} 38... Qa1 {[%clk 0:00:44.2]} 39. Qe2 {[%clk
0:00:54.3]} 39... h5 {[%clk 0:00:43]} 40. h3 {[%clk 0:00:54.2]} 40... Ne5 {[%clk
0:00:32.4]} 41. hxg4 {[%clk 0:00:53.2]} 41... hxg4 {[%clk 0:00:30.1]} 42. Kh2
{[%clk 0:00:52.9]} 42... Kd8 {[%clk 0:00:21.8]} 43. Kg1 {[%clk 0:00:50.3]} 43...
Kc8 {[%clk 0:00:19.3]} 44. Qc2 {[%clk 0:00:50.1]} 44... Nd3 {[%clk 0:00:19.1]}
45. Qe2 {[%clk 0:00:50.2]} 45... Ne5 {[%clk 0:00:19.3]} 46. Qc2 {[%clk
0:00:47.2]} 46... Nd3 {[%clk 0:00:16.9]} 47. f3 {[%clk 0:00:42.3]} 47... gxf3
{[%clk 0:00:15.4]} 48. gxf3 {[%clk 0:00:42.3]} 48... Qg7+ {[%clk 0:00:13.9]} 49.
Qg2 {[%clk 0:00:41.2]} 49... Qh6 {[%clk 0:00:12.9]} 50. f4 {[%clk 0:00:33.1]}
50... Nc5 {[%clk 0:00:13]} 51. Qh3+ {[%clk 0:00:32.2]} 51... Qxh3 {[%clk
0:00:11.7]} 52. Bxh3+ {[%clk 0:00:32.6]} 52... Kd8 {[%clk 0:00:12.6]} 53. Kf2
{[%clk 0:00:30.9]} 53... Ke7 {[%clk 0:00:13.5]} 54. Kg3 {[%clk 0:00:31.1]} 54...
Kf6 {[%clk 0:00:14.4]} 55. Bf1 {[%clk 0:00:30]} 55... Kf5 {[%clk 0:00:14.5]} 56.
Bh3+ {[%clk 0:00:30.2]} 56... Kf6 {[%clk 0:00:14.8]} 57. Kg4 {[%clk 0:00:30]}
57... Nd3 {[%clk 0:00:13.4]} 58. Bg2 {[%clk 0:00:28.1]} 58... Nc5 {[%clk
0:00:13.6]} 59. f5 {[%clk 0:00:25.6]} 59... Nd7 {[%clk 0:00:11.1]} 60. Kf4
{[%clk 0:00:22.5]} 60... Ne5 {[%clk 0:00:12]} 61. Bxe4 {[%clk 0:00:22.9]} 61...
Nxc4 {[%clk 0:00:11.4]} 62. Bd3 {[%clk 0:00:22.6]} 62... Ne5 {[%clk 0:00:11.5]}
63. Be2 {[%clk 0:00:21.7]} 63... Nd7 {[%clk 0:00:11.6]} 64. e4 {[%clk
0:00:21.7]} 64... Nf8 {[%clk 0:00:11.5]} 65. Bh5 {[%clk 0:00:15]} 65... Nh7
{[%clk 0:00:11.4]} 66. Be2 {[%clk 0:00:13.3]} 66... Ng5 {[%clk 0:00:11.5]} 67.
Bf1 {[%clk 0:00:12.3]} 67... Nf7 {[%clk 0:00:11]} 68. Be2 {[%clk 0:00:12.5]}
68... Ne5 {[%clk 0:00:11.3]} 69. Bf1 {[%clk 0:00:11.9]} 69... Nd7 {[%clk
0:00:11.5]} 70. Be2 {[%clk 0:00:11.9]} 70... Nc5 {[%clk 0:00:12.4]} 71. Bf1
{[%clk 0:00:11.6]} 71... Nb3 {[%clk 0:00:12.9]} 72. Be2 {[%clk 0:00:11.4]} 72...
Nd4 {[%clk 0:00:13.1]} 73. Bd3 {[%clk 0:00:11.4]} 73... Nb3 {[%clk 0:00:11.6]}
74. Bc4 {[%clk 0:00:11.1]} 74... Nc5 {[%clk 0:00:11.4]} 75. Be2 {[%clk
0:00:10.6]} 75... Nb7 {[%clk 0:00:10.4]} 76. Bf1 {[%clk 0:00:10.4]} 76... Nd8
{[%clk 0:00:11]} 77. Be2 {[%clk 0:00:10.7]} 77... Nf7 {[%clk 0:00:11.7]} 78. Bf1
{[%clk 0:00:11.1]} 78... Ne5 {[%clk 0:00:11.1]} 79. Be2 {[%clk 0:00:12]} 79...
Ke7 {[%clk 0:00:11.5]} 80. Bf1 {[%clk 0:00:11.8]} 80... Nd7 {[%clk 0:00:09.6]}
81. Be2 {[%clk 0:00:12.1]} 81... Kf6 {[%clk 0:00:09.5]} 82. Bf1 {[%clk
0:00:12.7]} 82... Nf8 {[%clk 0:00:09.3]} 83. Be2 {[%clk 0:00:13.6]} 83... Nh7
{[%clk 0:00:09.5]} 84. Bf1 {[%clk 0:00:14.5]} 84... Ke7 {[%clk 0:00:09.5]} 85.
Be2 {[%clk 0:00:14.8]} 85... Nf6 {[%clk 0:00:10.1]} 86. Bf1 {[%clk 0:00:14.6]}
86... Nd7 {[%clk 0:00:10]} 87. Be2 {[%clk 0:00:14.4]} 87... Kf6 {[%clk
0:00:10.2]} 88. Bf1 {[%clk 0:00:14.3]} 88... Nc5 {[%clk 0:00:10.3]} 89. Be2
{[%clk 0:00:15.2]} 89... Nb3 {[%clk 0:00:10.6]} 90. Bf1 {[%clk 0:00:14.8]} 90...
Nd4 {[%clk 0:00:11.1]} 91. Bd3 {[%clk 0:00:14.6]} 91... Nb3 {[%clk 0:00:09.3]}
92. Bf1 {[%clk 0:00:14.3]} 92... Nd2 {[%clk 0:00:08.9]} 93. Bd3 {[%clk
0:00:13.5]} 93... Nb3 {[%clk 0:00:08.6]} 1/2-1/2